[Event "1st FIDE Olympiad DIS 2023"]
[Site "Belgrade"]
[Date "2023.02.01"]
[Round "3.1"]
[White "Tazbir, Marcin"]
[Black "Sarkar, Justin"]
[Result "1/2-1/2"]
[ECO "C80"]
[WhiteElo "2507"]
[BlackElo "2345"]
[Annotator "TA"]
[PlyCount "61"]
[EventDate "2023.01.30"]
[EventType "team-tourn"]
[EventCountry "SRB"]
[SourceTitle "playchess.com"]
[Source "ChessBase"]
[SourceQuality "1"]
[WhiteTeam "Poland"]
[BlackTeam "United States"]
[WhiteTeamCountry "POL"]
[BlackTeamCountry "USA"]
[TimeControl "40/5400+30:1800+30"]

{[%evp 20,61,25,2,7,0,0,-18,-14,0,0,0,22,24,22,27,29,29,29,31,29,32,26,6,8,10,54,19,43,38,52,53,54,7,7,0,0,0,0,0,0,0,1,0]} 1. e4 {[%emt 0:00:37]} e5 {[%emt 0:00:14]} 2. Nf3 {[%emt 0:00:24]} Nc6 {[%emt 0:00:20]} 3. Bb5 {[%emt 0:00:12]} a6 {[%emt 0:00:14]} 4. Ba4 {[%emt 0:00:47]} Nf6 {[%emt 0:00:19]} 5. O-O {[%emt 0:00:09]} Nxe4 {[%emt 0:04:21]} 6. Re1 {[%emt 0:02:42]} Nc5 {[%emt 0:00:24]} 7. Bxc6 {[%emt 0:02:39]} dxc6 {[%emt 0:00:12]} 8. Nxe5 {[%emt 0:02:51]} Be7 {[%emt 0:00:43]} 9. d4 {[%emt 0:02:49]} Ne6 {[%emt 0:00:14]} 10. Be3 {[%emt 0:00:23]} O-O {[%emt 0:00:18]} 11. Nc3 {[%emt 0:00:22]} f6 {[%emt 0:05:07] C80: Open Ruy Lopez: Sidelines and 9 Nbd2.} 12. Nf3 {[%emt 0:04:00]} Re8 {[%emt 0:07:20]} 13. d5 {[%emt 0:15:25]} cxd5 {[%emt 0:04:16]} 14. Nxd5 {[%emt 0:00:00] [#]} b5 $146 {[%emt 0:16:06]} ({Predecessor:} 14... Bd6 15. Qd3 Bd7 16. Rad1 Nf8 17. Qb3 Kh8 18. c4 b6 19. Qc3 a5 20. a3 Ng6 21. Nxb6 cxb6 22. Rxd6 {1-0 Concio,M (2343)-Player,E (2212) Titled Tuesday intern op 15th Nov Early blitz 2022 (4)}) 15. Nxe7+ {[%emt 0:06:57]} Rxe7 {[%emt 0:01:39] Black is weak on the dark squares} 16. Qxd8+ {[%emt 0:03:54]} Nxd8 {[%emt 0:00:04]} 17. a4 {[%emt 0:00:07]} Bb7 {[%emt 0:03:22]} 18. axb5 {[%emt 0:02:56]} axb5 {[%emt 0:00:20]} 19. Rxa8 {[%emt 0:00:15]} Bxa8 {[%emt 0:00:03]} 20. Nd4 {[%emt 0:00:06]} b4 {[%emt 0:09:28]} 21. Ra1 {[%emt 0:01:17]} Be4 {[%emt 0:00:19]} 22. f3 {[%emt 0:07:50]} Bg6 {[%emt 0:00:34]} (22... c5 $5 {[%cal Rc5d4]} 23. Rd1 cxd4 24. Rxd4 Bxc2 25. Rxd8+ Kf7 $11) 23. Kf2 {[%emt 0:01:13]} (23. Ra8 $5 {[%cal Ra8d8]} Rxe3 24. Rxd8+ Re8 25. Rxe8+ Bxe8 26. Ne6 $14) 23... c5 {[%emt 0:08:00]} 24. Ra8 {[%emt 0:07:24]} Re8 {[%emt 0:00:19]} 25. Nb3 {[%emt 0:01:55]} c4 {[%emt 0:00:27]} 26. Nd4 {[%emt 0:05:43]} (26. Nd2 $14 {is more appropriate.}) 26... Nc6 $1 $11 {[%emt 0:01:28][%mdl 64] [#] Discovered Attack. The position is equal.} 27. Rxe8+ {[%emt 0:04:50]} Bxe8 {[%emt 0:00:01]} 28. Nxc6 {[%emt 0:00:06]} Bxc6 {[%emt 0:00:04]} 29. Bc5 {[%emt 0:00:05]} Ba4 {[%emt 0:01:21]} 30. Bxb4 {[%emt 0:00:05]} Bxc2 {[%emt 0:00:06]} 31. Bc3 {[%emt 0:00:02] Weighted Error Value: White=0.08 (flawless) /Black=0.06 (flawless)} 1/2-1/2

[Event "1st FIDE Olympiad DIS 2023"]
[Site "Belgrade"]
[Date "2023.02.01"]
[Round "3.1"]
[White "Zaynidinov, Sirojiddin"]
[Black "Kevorkov, Artur"]
[Result "1-0"]
[ECO "D53"]
[WhiteElo "2042"]
[BlackElo "2158"]
[Annotator "TA"]
[PlyCount "117"]
[EventDate "2023.01.30"]
[EventType "team-tourn"]
[EventCountry "SRB"]
[SourceTitle "playchess.com"]
[Source "ChessBase"]
[SourceQuality "1"]
[WhiteTeam "Uzbekistan"]
[BlackTeam "Germany"]
[WhiteTeamCountry "UZB"]
[BlackTeamCountry "GER"]
[TimeControl "40/5400+30:1800+30"]

{[%evp 11,117,16,61,19,30,16,17,29,22,20,27,15,47,60,58,29,57,59,73,80,89,46,64,50,73,69,102,78,88,0,93,99,83,98,110,76,51,69,120,125,155,89,136,122,160,102,197,184,190,189,187,184,158,135,161,164,154,170,158,164,165,161,172,173,168,170,193,183,202,191,183,186,186,180,273,272,12837,12837,12837,12838,12838,12838,12840,12840,12843,12843,12845,12845,12847,12847,12850,12850,12850,27999,27999,27999,27999,27999,27999,27999,27999,27999,27999,27999,27999,27999,27999,27999]} 1. Nf3 {[%emt 0:01:11]} Nf6 {[%emt 0:00:39]} 2. c4 {[%emt 0:00:15]} c6 {[%emt 0:00:21]} 3. Nc3 {[%emt 0:01:24]} d5 {[%emt 0:00:19]} 4. d4 {[%emt 0:03:55]} e6 {[%emt 0:06:12]} 5. Bg5 {[%emt 0:05:02]} Be7 {[%emt 0:00:07]} 6. e3 {[%emt 0:00:20]} Qa5 {[%emt 0:06:27]} 7. Bxf6 {[%emt 0:07:00] D53: Queen's Gambit Declined: 4 Bg5 Be7: Early deviations.} Bxf6 {[%emt 0:00:27]} 8. Bd3 {[%emt 0:00:55]} dxc4 {[%emt 0:04:45]} 9. Bxc4 {[%emt 0:00:33] The position is equal.} O-O {[%emt 0:00:46]} 10. O-O {[%emt 0:00:15]} Nd7 {[%emt 0:07:43]} 11. Rc1 {[%emt 0:05:16] [#]} Rd8 $146 {[%emt 0:16:57]} ({Predecessor:} 11... e5 12. Ne4 exd4 13. Nxf6+ Nxf6 14. Qxd4 Bg4 15. Qe5 Qb6 16. b3 Rae8 17. Qg3 Qa5 18. Ra1 Rd8 19. Qe5 Qa3 {½-½ Nene,T (1925)-Obanuta,D (1982) Pretoria Capablanca B 2018 (6)}) 12. Ne4 {[%emt 0:09:43]} Be7 {[%emt 0:00:49]} 13. Qc2 {[%emt 0:00:31]} h6 {[%emt 0:18:59]} 14. a3 {[%emt 0:08:32]} Qc7 {[%emt 0:01:22]} 15. Ba2 {[%emt 0:02:06]} Nf6 {[%emt 0:02:21]} 16. Rfd1 {[%emt 0:04:47]} Bd7 {[%emt 0:06:09]} 17. Ne5 {[%emt 0:05:05]} Nxe4 {[%emt 0:02:19]} 18. Qxe4 {[%emt 0:00:27]} Bf6 {[%emt 0:00:02]} 19. Ng4 {[%emt 0:04:42] White is much more active.} Be7 {[%emt 0:00:12]} 20. Ne5 {[%emt 0:03:05]} Bf6 $1 {[%emt 0:00:27]} 21. f4 {[%emt 0:00:58]} Be8 {[%emt 0:04:19]} 22. Ng4 {[%emt 0:01:54]} Qe7 {[%emt 0:02:31]} 23. Bb1 {[%emt 0:01:13] [#] Threatening mate with Qh7+.} (23. Rf1 {simplifies} Kh8 24. Nxf6 Qxf6 25. f5) 23... g6 {[%emt 0:00:17]} 24. Nxh6+ {[%emt 0:00:21]} (24. Nxf6+ {simplifies} Qxf6 25. Qf3 Rac8 26. Be4) 24... Kg7 {[%emt 0:00:50]} (24... Kf8 $14) 25. Ng4 $36 {[%emt 0:00:19][%mdl 2048] White is on the roll.} Rd5 {[%emt 0:00:33]} 26. Ne5 {[%emt 0:01:26]} (26. Qf3 $142) 26... Rad8 {[%emt 0:00:46]} (26... c5 $142) 27. Rf1 {[%emt 0:06:52]} Rb5 {[%emt 0:07:17]} 28. Rf2 {[%emt 0:05:48]} (28. b4 $142) 28... Bxe5 {[%emt 0:02:23]} (28... c5 $16 {keeps fighting.}) 29. fxe5 $18 {[%emt 0:00:56]} c5 {[%emt 0:00:02]} 30. Qf4 {[%emt 0:02:41] Against Qg5} cxd4 {[%emt 0:01:35]} 31. exd4 {[%emt 0:00:22] aiming for Rc3.} Rbd5 {[%emt 0:00:31]} 32. Rd2 {[%emt 0:02:26]} f6 {[%emt 0:02:30] [#]} 33. Rc7 $3 {[%emt 0:08:20][%mdl 576] Deflection} R8d7 {[%emt 0:00:12]} (33... R5d7 34. Rxd7) 34. exf6+ {[%emt 0:01:50]} Qxf6 {[%emt 0:00:02]} 35. Rxd7+ {[%emt 0:00:20]} Bxd7 {[%emt 0:00:30]} 36. Qxf6+ {[%emt 0:02:16]} Kxf6 $16 {[%emt 0:00:02][%mdl 4096] Endgame KRB-KRB} 37. Be4 {[%emt 0:00:47]} Rb5 {[%emt 0:00:18]} 38. Rf2+ {[%emt 0:00:35]} Kg7 {[%emt 0:00:06]} 39. Rc2 {[%emt 0:00:46] Wards off Bc6. Rc7 is the strong threat.} Kf6 {[%emt 0:03:42]} 40. Rc7 {[%emt 0:00:58][%csl LRb7,LRd7]} Bc6 {[%emt 0:00:02]} 41. Bxc6 {[%emt 0:30:21]} bxc6 {[%emt 0:30:01]} 42. Rxc6 $18 {[%emt 0:03:51] KR-KR} Rd5 {[%emt 0:00:36]} (42... a5 $142 43. Rc2 g5) 43. Rc4 {[%emt 0:00:00]} Kf5 $2 {[%emt 0:00:00]} (43... a5 44. Kf2 Rf5+ 45. Ke3 Rf1) 44. Rc5 {[%emt 0:00:00]} Ke4 {[%emt 0:00:00]} 45. Rxd5 {[%emt 0:00:00]} exd5 {[%emt 0:00:00] KP-KP} 46. Kf2 {[%emt 0:00:00]} Kxd4 {[%emt 0:00:00]} 47. Ke2 {[%emt 0:00:00]} a5 {[%emt 0:00:00]} 48. h4 {[%emt 0:00:00]} Kc4 {[%emt 0:00:00]} 49. g4 {[%emt 0:00:00]} Kb3 {[%emt 0:00:00]} 50. Kd3 {[%emt 0:00:00]} Kxb2 {[%emt 0:00:00]} 51. h5 {[%emt 0:00:00]} gxh5 {[%emt 0:00:00]} 52. gxh5 {[%emt 0:00:00]} Kxa3 {[%emt 0:00:00] KPP-KP. White mates.} 53. h6 {[%emt 0:00:00]} Ka2 {[%emt 0:00:00]} 54. h7 {[%emt 0:00:00]} a4 {[%emt 0:00:00]} 55. h8=Q {[%emt 0:00:00]} a3 {[%emt 0:00:00]} 56. Kc2 {[%emt 0:00:00]} d4 {[%emt 0:00:00]} 57. Qg8+ {[%emt 0:00:00]} Ka1 {[%emt 0:00:00]} 58. Qb3 {[%emt 0:00:00][%cal Rb3a3]} d3+ {[%emt 0:00:00]} 59. Kc3 {[%emt 0:00:00] Weighted Error Value: White=0.13 (very precise) /Black=0.16 (very precise)} 1-0

[Event "1st FIDE Olympiad DIS 2023"]
[Site "Belgrade"]
[Date "2023.02.01"]
[Round "3.2"]
[White "Obodchuk, Andrei"]
[Black "Molenda, Marcin"]
[Result "0-1"]
[ECO "D27"]
[WhiteElo "2317"]
[BlackElo "2381"]
[Annotator "TA"]
[PlyCount "136"]
[EventDate "2023.01.30"]
[EventType "team-tourn"]
[EventCountry "SRB"]
[SourceTitle "playchess.com"]
[Source "ChessBase"]
[SourceQuality "1"]
[WhiteTeam "FID"]
[BlackTeam "Poland"]
[BlackTeamCountry "POL"]
[TimeControl "40/5400+30:1800+30"]

{[%evp 19,136,10,27,0,0,-4,8,0,0,0,0,0,0,0,0,0,0,0,0,0,0,0,0,0,0,0,0,0,0,0,0,-6,-7,-7,-13,-13,-10,-12,-5,-57,0,-73,0,0,0,0,0,0,0,0,0,0,0,0,0,0,0,0,0,0,0,0,0,0,0,0,0,0,0,0,0,0,0,0,0,0,0,0,0,0,0,0,0,0,0,0,0,0,0,0,0,0,0,0,0,0,0,0,0,0,0,0,0,0,0,0,0,0,0,-8,-8,-29968,-29961,-12797,-5162,-12800,-5114,-5073,-5065]} 1. d4 {[%emt 0:00:16]} Nf6 {[%emt 0:00:05]} 2. c4 {[%emt 0:00:08]} e6 {[%emt 0:00:13]} 3. Nf3 {[%emt 0:00:51]} d5 {[%emt 0:00:08]} 4. Nc3 {[%emt 0:00:13]} dxc4 {[%emt 0:00:20]} 5. e3 {[%emt 0:04:04]} a6 {[%emt 0:01:26]} 6. Bxc4 {[%emt 0:04:12]} b5 {[%emt 0:01:07]} 7. Be2 {[%emt 0:00:19]} Bb7 {[%emt 0:00:15]} 8. O-O {[%emt 0:00:23]} c5 {[%emt 0:02:35]} 9. dxc5 {[%emt 0:04:13]} Qxd1 {[%emt 0:02:48]} 10. Rxd1 {[%emt 0:00:21]} Bxc5 {[%emt 0:00:18]} 11. b3 {[%emt 0:01:16] D27: Queen's Gambit Accepted: Classical main line: 7 e4!? and 7 a4.} Nbd7 {[%emt 0:01:42]} 12. Bb2 {[%emt 0:00:28]} Ke7 {[%emt 0:03:28] [#]} 13. Nd2 $146 {[%emt 0:14:11] The position is equal.} ({Predecessor:} 13. Rac1 Rac8 14. Nd4 g6 15. a3 e5 16. Nf3 Rhd8 17. b4 Bd6 18. Nd2 {½-½ Gunina,V (2427)-Timofeev,A (2594) Titled Tuesday intern op 26th Jan blitz 2021 (6)}) 13... Rhc8 {[%emt 0:24:46]} 14. Bf3 {[%emt 0:00:25]} Bxf3 {[%emt 0:01:22]} 15. Nxf3 {[%emt 0:00:09]} Bd6 {[%emt 0:06:31]} 16. Rac1 {[%emt 0:01:43]} Ne5 {[%emt 0:11:28]} 17. Nxe5 {[%emt 0:02:28]} Bxe5 {[%emt 0:00:05]} 18. Nd5+ {[%emt 0:02:01][%mdl 64] [#] Discovered Attack} Nxd5 {[%emt 0:02:19]} 19. Bxe5 {[%emt 0:00:07]} f6 {[%emt 0:01:37]} 20. Bb2 {[%emt 0:03:26]} Rxc1 {[%emt 0:06:35]} 21. Rxc1 $11 {[%emt 0:00:14][%mdl 4096] Endgame KRB-KRN} Rd8 {[%emt 0:01:10]} 22. Kf1 {[%emt 0:01:25]} e5 {[%emt 0:02:26]} 23. Ke2 {[%emt 0:04:58]} Kd7 {[%emt 0:04:47]} 24. Rd1 {[%emt 0:07:40]} Ke6 {[%emt 0:03:49]} 25. a3 {[%emt 0:05:01]} Rc8 {[%emt 0:01:32]} 26. Rc1 {[%emt 0:00:23]} Rxc1 {[%emt 0:00:06]} 27. Bxc1 {[%emt 0:00:06] KB-KN} e4 {[%emt 0:00:07]} 28. Bb2 {[%emt 0:00:49]} g6 {[%emt 0:02:09]} 29. g4 {[%emt 0:05:59]} (29. f3 $11) 29... h5 {[%emt 0:01:35]} (29... f5 $15) 30. h3 {[%emt 0:01:23] [#]} (30. gxh5 $11 {remains equal.} gxh5 31. Bd4) 30... f5 {[%emt 0:01:05]} ({Black should play} 30... hxg4 $1 $17 31. hxg4 Ne7) 31. gxh5 {[%emt 0:00:56]} gxh5 {[%emt 0:00:05]} 32. f3 {[%emt 0:01:43]} Ne7 {[%emt 0:01:48]} 33. fxe4 {[%emt 0:00:48]} fxe4 {[%emt 0:00:05]} 34. Bc3 {[%emt 0:01:25]} Nd5 {[%emt 0:04:36]} 35. Bd2 {[%emt 0:02:21]} Kf5 {[%emt 0:00:07]} 36. Kf2 {[%emt 0:00:17]} Kg5 {[%emt 0:00:14]} 37. Kg2 {[%emt 0:00:22]} Ne7 {[%emt 0:04:45]} 38. Kg3 {[%emt 0:02:57]} Nf5+ {[%emt 0:00:40]} 39. Kg2 {[%emt 0:00:30]} Kf6 {[%emt 0:06:14]} 40. Kf2 {[%emt 0:00:28]} Ke6 {[%emt 0:00:13]} 41. Be1 {[%emt 0:32:19]} Kd5 {[%emt 0:30:37]} 42. Bb4 {[%emt 0:00:32]} Ke6 {[%emt 0:00:00]} 43. Ba5 {[%emt 0:00:00]} Kf6 {[%emt 0:00:00]} 44. Bd8+ {[%emt 0:00:00]} Kg6 {[%emt 0:00:00]} 45. Ba5 {[%emt 0:00:00]} Ng7 {[%emt 0:00:00]} 46. Kg3 {[%emt 0:00:00]} Ne6 {[%emt 0:00:00]} 47. Bb4 {[%emt 0:00:00]} Kg5 {[%emt 0:00:00]} 48. Be7+ {[%emt 0:00:00]} Kg6 {[%emt 0:00:00]} 49. Bb4 {[%emt 0:00:00]} Kh6 {[%emt 0:00:00]} 50. Kh4 {[%emt 0:00:00]} Nc7 {[%emt 0:00:00]} 51. Kg3 {[%emt 0:00:00]} Nd5 {[%emt 0:00:00]} 52. Bd2 {[%emt 0:00:00]} Kg5 {[%emt 0:00:00]} 53. Kg2 {[%emt 0:00:00]} h4 {[%emt 0:00:00]} 54. Kf2 {[%emt 0:00:00]} Ne7 {[%emt 0:00:00]} 55. Ke2 {[%emt 0:00:00]} Nc6 {[%emt 0:00:00]} 56. Bc3 {[%emt 0:00:00]} Nd8 {[%emt 0:00:00]} 57. Bb4 {[%emt 0:00:00]} Nf7 {[%emt 0:00:00]} 58. Kd2 {[%emt 0:00:00]} Ne5 {[%emt 0:00:00]} 59. Be7+ {[%emt 0:00:00]} Kh5 {[%emt 0:00:00]} 60. Kc3 {[%emt 0:00:00]} Nf3 {[%emt 0:00:00]} 61. a4 {[%emt 0:00:00]} Ng1 {[%emt 0:00:00]} 62. axb5 {[%emt 0:00:00]} axb5 {[%emt 0:00:00]} 63. Kd4 {[%emt 0:00:00]} Nxh3 {[%emt 0:00:00] And now ...Nf2 would win.} 64. Kxe4 {[%emt 0:00:00]} Ng5+ {[%emt 0:00:00]} 65. Kd5 $2 {[%emt 0:00:00][%mdl 8192] Loses the game.} (65. Kf4 $11 Nf7 66. Bxh4 Kxh4 67. Ke4) 65... h3 {[%emt 0:00:00]} 66. Bd6 {[%emt 0:00:00]} Kg4 {[%emt 0:00:00] ( -> ...Kf3). Black is clearly winning.} 67. Bh2 {[%emt 0:08:55]} Kf3 {[%emt 0:00:00][%cal Og5e4] aiming for ...Ne4!} 68. Kc5 {[%emt 0:01:30]} Kg2 {[%emt 0:00:00] Weighted Error Value: White=0.07 (flawless) /Black=0.04 (flawless)} 0-1

[Event "1st FIDE Olympiad DIS 2023"]
[Site "Belgrade"]
[Date "2023.02.01"]
[Round "3.2"]
[White "Koessler, Wolfgang"]
[Black "Mamarajabov, Sardorbek"]
[Result "1/2-1/2"]
[ECO "B43"]
[WhiteElo "1746"]
[BlackElo "1712"]
[Annotator "NA RC COMBH"]
[PlyCount "151"]
[EventDate "2023.01.30"]
[EventType "team-tourn"]
[EventCountry "SRB"]
[SourceTitle "playchess.com"]
[Source "ChessBase"]
[SourceQuality "1"]
[WhiteTeam "Germany"]
[BlackTeam "Uzbekistan"]
[WhiteTeamCountry "GER"]
[BlackTeamCountry "UZB"]
[TimeControl "40/5400+30:1800+30"]

1. e4 {[%emt 0:00:04]} c5 {[%emt 0:00:19]} 2. Nf3 {[%emt 0:00:11]} e6 {[%emt 0:00:11]} 3. Nc3 {[%emt 0:01:44]} a6 {[%emt 0:00:11]} 4. d4 {[%emt 0:00:15]} cxd4 {[%emt 0:00:06]} 5. Nxd4 {[%emt 0:00:08]} Qc7 {[%emt 0:00:19]} 6. g3 {[%emt 0:01:27]} Bb4 {[%emt 0:01:46]} 7. Nde2 {[%emt 0:04:31]} Nf6 {[%emt 0:02:12]} 8. Bg2 {[%emt 0:00:14]} Nc6 {[%emt 0:01:09]} 9. O-O {[%emt 0:00:27]} Bc5 {[%emt 0:06:07]} 10. h3 {[%emt 0:05:05]} b5 {[%emt 0:12:20]} 11. Kh2 {[%emt 0:05:48]} Bb7 {[%emt 0:03:20]} 12. f4 {[%emt 0:16:17]} h5 {[%emt 0:02:18]} 13. Bf3 {[%emt 0:08:34]} Na5 {[%emt 0:20:55]} 14. Qd3 {[%emt 0:04:40]} Rc8 {[%emt 0:10:37]} 15. Kg2 {[%emt 0:17:00]} b4 {[%emt 0:04:35]} 16. e5 {[%emt 0:04:34]} bxc3 {[%emt 0:08:40]} 17. exf6 {[%emt 0:00:06]} gxf6 {[%emt 0:00:29]} 18. Qxc3 {[%emt 0:03:13]} Be7 {[%emt 0:02:34]} 19. Qxc7 {[%emt 0:03:31]} Rxc7 {[%emt 0:00:27]} 20. Bxb7 {[%emt 0:00:25]} Nxb7 {[%emt 0:00:21]} 21. c3 {[%emt 0:00:26]} f5 {[%emt 0:08:57]} 22. Be3 {[%emt 0:02:19]} Nd6 {[%emt 0:00:11]} 23. b3 {[%emt 0:05:41]} Ne4 {[%emt 0:00:16]} 24. c4 {[%emt 0:00:37]} Rg8 {[%emt 0:00:28]} 25. Kf3 {[%emt 0:00:19]} Bc5 {[%emt 0:05:49]} 26. Rg1 {[%emt 0:00:51]} Ke7 {[%emt 0:03:27]} 27. Rad1 {[%emt 0:01:39]} d6 {[%emt 0:00:54]} 28. g4 {[%emt 0:05:13]} hxg4+ {[%emt 0:01:06]} 29. hxg4 {[%emt 0:00:07]} Rh8 {[%emt 0:01:21]} 30. Bxc5 {[%emt 0:01:58]} dxc5 {[%emt 0:00:27]} 31. gxf5 {[%emt 0:00:25]} exf5 {[%emt 0:00:07]} 32. Rd5 {[%emt 0:03:13]} Rh3+ {[%emt 0:03:22]} 33. Kg2 {[%emt 0:00:12]} Re3 {[%emt 0:00:08]} 34. Kf1 {[%emt 0:01:05]} Kf6 {[%emt 0:00:34]} 35. Rg2 {[%emt 0:01:16]} Rc8 {[%emt 0:00:53]} 36. Rh2 {[%emt 0:02:07]} Rg8 {[%emt 0:00:31]} 37. Rh5 {[%emt 0:01:25]} Ng3+ {[%emt 0:00:53]} 38. Nxg3 {[%emt 0:00:12]} Rgxg3 {[%emt 0:00:07]} 39. Rhxf5+ {[%emt 0:00:26]} Ke6 {[%emt 0:00:36]} 40. Rfe5+ {[%emt 0:00:55]} Rxe5 {[%emt 0:00:40]} 41. Rxe5+ {[%emt 0:31:25]} Kd6 {[%emt 0:30:08]} 42. Rf5 {[%emt 0:00:00]} Ke7 {[%emt 0:00:00]} 43. Rxc5 {[%emt 0:00:00]} Rf3+ {[%emt 0:00:00]} 44. Ke2 {[%emt 0:00:00]} Rxf4 {[%emt 0:00:00]} 45. Rc6 {[%emt 0:00:00]} a5 {[%emt 0:00:00]} 46. Rc5 {[%emt 0:00:00]} a4 {[%emt 0:00:00]} 47. Ra5 {[%emt 0:00:00]} axb3 {[%emt 0:00:00]} 48. axb3 {[%emt 0:00:00]} Kd6 {[%emt 0:00:00]} 49. Ke3 {[%emt 0:00:00]} Rh4 {[%emt 0:00:00]} 50. Rf5 {[%emt 0:00:00]} Ke6 {[%emt 0:00:00]} 51. Rb5 {[%emt 0:00:00]} Kd6 {[%emt 0:00:00]} 52. Rf5 {[%emt 0:00:00]} Ke6 {[%emt 0:00:00]} 53. Rf3 {[%emt 0:00:00]} f5 {[%emt 0:00:00]} 54. Kd3 {[%emt 0:00:00]} Ke5 {[%emt 0:00:00]} 55. Re3+ {[%emt 0:00:00]} Kd6 {[%emt 0:00:00]} 56. b4 {[%emt 0:00:00]} Rg4 {[%emt 0:00:00]} 57. b5 {[%emt 0:00:00]} Rg1 {[%emt 0:00:27]} 58. Rf3 {[%emt 0:00:00]} Ke5 {[%emt 0:04:24]} 59. c5 {[%emt 0:00:07]} Rc1 {[%emt 0:01:24]} 60. c6 {[%emt 0:00:24]} Rc5 {[%emt 0:00:25]} 61. Rf2 {[%emt 0:04:22]} Rxb5 {[%emt 0:00:17]} 62. c7 {[%emt 0:00:47]} Rd5+ {[%emt 0:04:01]} 63. Kc4 {[%emt 0:00:42]} Rd4+ {[%emt 0:00:18]} 64. Kb5 {[%emt 0:00:51]} Rd5+ {[%emt 0:00:28]} 65. Kb6 {[%emt 0:00:23]} Rd6+ {[%emt 0:00:11]} 66. Kb7 {[%emt 0:01:20]} Rd7 {[%emt 0:00:06]} 67. Kb8 {[%emt 0:00:11]} Rxc7 {[%emt 0:00:09]} 68. Kxc7 {[%emt 0:00:07]} f4 {[%emt 0:00:17]} 69. Kc6 {[%emt 0:02:55]} Ke4 {[%emt 0:00:06]} 70. Kc5 {[%emt 0:00:37]} Ke3 {[%emt 0:00:06]} 71. Rf1 {[%emt 0:00:32]} f3 {[%emt 0:00:05]} 72. Ra1 {[%emt 0:00:11]} f2 {[%emt 0:00:09]} 73. Kc4 {[%emt 0:00:44]} Ke2 {[%emt 0:00:06]} 74. Ra2+ {[%emt 0:00:08]} Ke3 {[%emt 0:00:24]} 75. Ra1 {[%emt 0:00:21]} Ke2 {[%emt 0:00:05]} 76. Kd4 {[%emt 0:00:08]} 1/2-1/2